bitfinex/quotes_BTCUSD_20250910
["timestamp","ask_amount","ask_price","bid_price","bid_amount"]
[1757493567871,0.01270765,112750.0,112740.0,1.17296595]
[1757493568075,0.01270765,112750.0,112740.0,1.1831795]
[1757493568581,0.01270765,112750.0,112740.0,1.1861795]
[1757493569007,0.01270765,112750.0,112740.0,1.07273689]
[1757493569218,0.01270765,112750.0,112740.0,1.1861795]
[1757493570156,0.01270765,112750.0,112740.0,1.12258805]
[1757493571349,0.01270765,112750.0,112740.0,1.12458805]
[1757493571934,0.01270765,112750.0,112740.0,1.39328805]
[1757493573416,0.01270765,112750.0,112740.0,1.50673066]
[1757493575817,0.01270765,112750.0,112740.0,1.27984544]
[1757493576000,0.01270765,112750.0,112740.0,1.50673066]
[1757493576656,0.01270765,112750.0,112740.0,1.50657066]
[1757493583695,0.01270765,112750.0,112740.0,1.84657066]
[1757493584557,0.01270765,112750.0,112740.0,1.87321557]
[1757493584912,0.01270765,112750.0,112740.0,1.93680702]
[1757493585117,0.01270765,112750.0,112740.0,1.87321557]
[1757493588769,0.01270765,112750.0,112740.0,1.93680702]
[1757493593332,0.01270765,112750.0,112740.0,1.87321557]
[1757493595382,0.01270765,112750.0,112740.0,1.952985]
[1757493596666,0.01270765,112750.0,112740.0,1.952785]
[1757493598390,0.01270765,112750.0,112740.0,1.805185]
[1757493598603,0.01270765,112750.0,112740.0,1.952785]
[1757493600496,0.01270765,112750.0,112740.0,2.06600666]
[1757493600710,0.19009124,112750.0,112740.0,1.69262978]
[1757493600953,0.01270765,112750.0,112740.0,1.75929888]
[1757493601170,0.01270765,112750.0,112740.0,2.00912175]
[1757493601382,0.01270765,112750.0,112740.0,1.92835232]
[1757493602514,0.01270765,112750.0,112740.0,2.00812175]
[1757493604989,0.01270765,112750.0,112740.0,2.03722175]
[1757493608612,0.01270765,112750.0,112740.0,2.20727519]
[1757493608791,0.00213425,112750.0,112740.0,2.25727519]
[1757493609055,0.00213425,112750.0,112740.0,2.17750576]
[1757493609331,0.00213425,112750.0,112740.0,2.28785957]
[1757493609541,0.00213425,112750.0,112740.0,2.35562957]
[1757493609744,0.00213425,112750.0,112740.0,2.33785957]
[1757493610365,0.00213425,112750.0,112740.0,2.33485957]
[1757493610575,0.00213425,112750.0,112740.0,2.33885957]
[1757493610787,0.00213425,112750.0,112740.0,2.19125957]
[1757493610976,0.00213425,112750.0,112740.0,2.33485957]
[1757493611171,0.00213425,112750.0,112740.0,2.33885957]
[1757493611377,0.00213425,112750.0,112740.0,2.19125957]
[1757493611524,0.00213425,112750.0,112740.0,2.36549975]
[1757493611898,0.00213425,112750.0,112740.0,2.21789975]
[1757493612139,0.00213425,112750.0,112740.0,2.36849975]
[1757493612693,0.00213425,112750.0,112740.0,2.36549975]
[1757493613357,0.18620426,112780.0,112770.0,0.19518002]
[1757493613603,0.18625046,112780.0,112770.0,0.83522229]
[1757493613841,0.18625046,112780.0,112770.0,1.01257442]
[1757493614082,0.18625046,112780.0,112770.0,1.41257442]
[1757493615508,0.18625046,112780.0,112770.0,1.41457442]
[1757493616380,0.18625046,112780.0,112770.0,1.35078389]
[1757493617270,0.18625046,112780.0,112770.0,1.41457442]
[1757493619288,0.18625046,112780.0,112770.0,1.26697442]
[1757493619512,0.18625046,112780.0,112770.0,1.23722229]
[1757493619766,0.19130046,112780.0,112770.0,1.23722229]
[1757493620182,0.18827046,112780.0,112770.0,0.91956885]
[1757493620401,0.19130046,112780.0,112770.0,1.23722229]
[1757493620837,0.19130046,112780.0,112770.0,1.23822229]
[1757493621261,0.3613539,112780.0,112770.0,1.06816885]
[1757493621969,0.3613539,112780.0,112770.0,1.24552098]
[1757493622183,0.3563039,112780.0,112770.0,1.24552098]
[1757493626592,0.18625046,112780.0,112770.0,1.24552098]
[1757493626833,0.3563039,112780.0,112770.0,1.09792098]
[1757493627096,0.3563039,112780.0,112770.0,1.24552098]
[1757493627226,0.3563039,112780.0,112770.0,1.09792098]
[1757493627445,0.3563039,112780.0,112770.0,1.24552098]
[1757493631356,0.17896646,112780.0,112770.0,1.24552098]
[1757493631543,4.62e-05,112780.0,112770.0,1.24552098]
[1757493631758,4.62e-05,112780.0,112770.0,1.24848098]
[1757493632209,4.62e-05,112780.0,112770.0,1.41853442]
[1757493633042,4.62e-05,112780.0,112770.0,1.46853442]
[1757493633262,4.62e-05,112780.0,112770.0,1.43293389]
[1757493633454,4.62e-05,112780.0,112770.0,1.51267206]
[1757493636405,4.62e-05,112780.0,112770.0,1.85267206]
[1757493636619,4.62e-05,112780.0,112770.0,2.0227255]
[1757493636835,6.2e-06,112780.0,112770.0,1.94298733]
[1757493637295,6.2e-06,112780.0,112770.0,2.05334114]
[1757493637927,6.2e-06,112780.0,112770.0,2.05134114]
[1757493638562,6.2e-06,112780.0,112770.0,2.05434114]
[1757493638990,6.2e-06,112780.0,112770.0,1.90674114]
[1757493639216,6.2e-06,112780.0,112770.0,2.05430114]
[1757493640163,6.2e-06,112780.0,112770.0,2.05330114]
[1757493640968,6.2e-06,112780.0,112770.0,2.05530114]
[1757493641151,0.35923749,112810.0,112800.0,0.17730496]
[1757493641354,0.35923749,112810.0,112800.0,0.48494095]
[1757493641575,0.36131749,112810.0,112800.0,0.48494095]
[1757493641855,0.00511,112810.0,112800.0,0.88706095]
[1757493642032,0.3808034,112820.0,112810.0,0.05]
[1757493642202,0.55305979,112820.0,112810.0,0.2916921]
[1757493642420,0.55305979,112820.0,112810.0,0.28947599]
[1757493644793,0.55505979,112820.0,112810.0,0.28947599]
[1757493645499,0.55505979,112820.0,112810.0,0.68947599]
[1757493646342,0.55505979,112820.0,112810.0,0.54191599]
[1757493646575,0.55505979,112820.0,112810.0,0.68947599]
[1757493646895,0.55505979,112820.0,112810.0,0.54191599]
[1757493647122,0.55505979,112820.0,112810.0,0.68947599]
[1757493647812,0.55505979,112820.0,112810.0,0.54191599]
[1757493648011,0.55505979,112820.0,112810.0,0.68947599]
[1757493648376,0.55505979,112820.0,112810.0,0.28947599]
[1757493649038,0.55505979,112820.0,112810.0,0.68947599]
[1757493649809,0.55605979,112820.0,112810.0,0.68947599]
[1757493650250,0.55605979,112820.0,112810.0,0.68943599]
[1757493651935,0.55605979,112820.0,112810.0,0.28943599]
[1757493652365,0.55605979,112820.0,112810.0,0.68943599]
[1757493655595,0.55605979,112820.0,112810.0,0.28943599]
[1757493656146,0.55605979,112820.0,112810.0,0.68943599]
[1757493657861,0.55605979,112820.0,112810.0,0.95600174]
[1757493660259,0.21595291,112820.0,112810.0,0.95600174]
[1757493660468,0.44254957,112820.0,112810.0,0.95600174]
[1757493660671,0.21595291,112820.0,112810.0,0.95600174]
[1757493660882,0.44254957,112820.0,112810.0,0.95600174]
[1757493661537,0.44254957,112820.0,112810.0,1.00372199]
[1757493661764,0.32925124,112820.0,112810.0,1.00372199]
[1757493663088,0.24258678,112820.0,112810.0,1.00372199]
[1757493663289,0.35588511,112820.0,112810.0,1.00372199]
[1757493664028,0.46918344,112820.0,112810.0,1.00372199]
[1757493672791,0.24258678,112820.0,112810.0,1.00372199]
[1757493672973,0.46918344,112820.0,112810.0,1.00372199]
[1757493675565,0.24258678,112820.0,112810.0,1.00372199]
[1757493675773,0.46918344,112820.0,112810.0,1.00372199]
[1757493676165,0.46918344,112820.0,112810.0,0.85620199]
[1757493676336,0.46918344,112820.0,112810.0,1.00372199]
[1757493682795,0.58248177,112820.0,112810.0,0.04772025]
[1757493683001,0.17728924,112810.0,112800.0,0.16588025]
[1757493683217,0.20783924,112810.0,112800.0,0.26564]
[1757493683420,0.4364859,112810.0,112800.0,0.26564]
[1757493683835,0.54978423,112810.0,112800.0,0.11816]
[1757493684046,0.54978423,112810.0,112800.0,0.26564]
[1757493684228,0.4364859,112810.0,112800.0,0.26564]
[1757493684583,0.46312514,112810.0,112800.0,0.26564]
[1757493685240,0.46512514,112810.0,112800.0,0.26564]
[1757493686326,0.57842347,112810.0,112800.0,0.21564]
[1757493686542,0.57842347,112810.0,112800.0,0.14748]
[1757493687157,0.91842347,112810.0,112800.0,0.14748]
[1757493687355,0.91842347,112810.0,112780.0,0.16588025]
[1757493687356,0.17732068,112790.0,112780.0,0.16588025]
[1757493687558,0.29061901,112790.0,112780.0,0.31336025]
[1757493687775,0.29266901,112790.0,112780.0,0.31336025]
[1757493687983,0.32321901,112790.0,112780.0,0.26564]
[1757493688186,0.34986233,112790.0,112780.0,0.26564]
[1757493688417,0.46316066,112790.0,112780.0,0.26564]
[1757493689033,0.46516066,112790.0,112780.0,0.26564]
[1757493690238,0.57845899,112790.0,112780.0,0.06816]
[1757493690695,0.57845899,112790.0,112780.0,0.21568]
[1757493691188,0.91845899,112790.0,112780.0,0.14752]
[1757493691801,0.1773364,112780.0,112770.0,0.05]
[1757493692010,0.51928139,112780.0,112770.0,0.19752]
[1757493692222,0.54983139,112780.0,112770.0,0.05]
[1757493692434,0.17735213,112770.0,112760.0,0.11816]
[1757493692691,0.17735213,112770.0,112760.0,0.26568]
[1757493692692,0.43449879,112770.0,112760.0,0.26568]
[1757493692900,0.43654879,112770.0,112760.0,0.26568]
[1757493693082,0.46319699,112770.0,112760.0,0.2657262]
[1757493693810,0.47294457,112770.0,112760.0,0.2657262]
[1757493695113,0.47394457,112770.0,112760.0,0.2657262]
[1757493695567,0.47494457,112770.0,112760.0,0.2657262]
[1757493695796,0.47494457,112770.0,112760.0,0.1182062]
[1757493696013,0.47494457,112770.0,112760.0,0.2657262]
[1757493697566,0.47494457,112770.0,112760.0,0.1182062]
[1757493697787,0.47494457,112770.0,112760.0,0.2657262]
[1757493708086,0.47494457,112770.0,112760.0,0.1975662]
[1757493710107,0.5882429,112770.0,112760.0,0.1475662]
[1757493710739,0.9282429,112770.0,112760.0,4.62e-05]
[1757493710937,0.9282429,112770.0,112760.0,0.1475662]
[1757493711225,0.9282429,112770.0,112760.0,4.62e-05]
[1757493711226,1.0757629,112770.0,112760.0,4.62e-05]
[1757493712211,1.09234656,112770.0,112760.0,4.62e-05]
[1757493713424,1.18426255,112770.0,112760.0,4.62e-05]
[1757493714416,0.92344422,112770.0,112760.0,4.62e-05]
[1757493714645,0.83153346,112770.0,112760.0,4.62e-05]
[1757493714811,0.83053346,112770.0,112760.0,4.62e-05]
[1757493715046,0.83253346,112770.0,112760.0,4.62e-05]
[1757493716821,0.94583179,112770.0,112760.0,4.62e-05]
[1757493717024,1.18530778,112770.0,112760.0,4.62e-05]
[1757493717217,1.19361079,112770.0,112760.0,4.62e-05]
[1757493717657,1.19261079,112770.0,112760.0,4.62e-05]
[1757493718187,1.19361079,112770.0,112760.0,4.62e-05]
[1757493720118,1.19984239,112770.0,112760.0,4.62e-05]
[1757493720519,1.19987112,112770.0,112760.0,4.62e-05]
[1757493720724,1.05231112,112770.0,112760.0,4.62e-05]
[1757493720982,1.19987112,112770.0,112760.0,4.62e-05]
[1757493722376,1.37055255,112770.0,112760.0,4.62e-05]
[1757493722833,1.22299255,112770.0,112760.0,4.62e-05]
[1757493723032,1.37055255,112770.0,112760.0,4.62e-05]
[1757493726536,1.22299255,112770.0,112760.0,4.62e-05]
[1757493726736,1.37055255,112770.0,112760.0,4.62e-05]
[1757493728626,1.22299255,112770.0,112760.0,4.62e-05]
[1757493728768,1.37055255,112770.0,112760.0,4.62e-05]
[1757493731231,1.20036041,112770.0,112760.0,4.62e-05]
[1757493732071,1.37055255,112770.0,112760.0,4.62e-05]
[1757493732671,1.37051255,112770.0,112760.0,4.62e-05]
[1757493732991,1.20032041,112770.0,112760.0,4.62e-05]
[1757493734149,1.37052093,112770.0,112760.0,4.62e-05]
[1757493735457,1.46243692,112770.0,112760.0,4.62e-05]
[1757493735656,1.4815905,112770.0,112760.0,4.62e-05]
[1757493736099,1.38967451,112770.0,112760.0,4.62e-05]
[1757493736708,1.4370851,112770.0,112760.0,4.62e-05]
[1757493737352,1.4350851,112770.0,112760.0,4.62e-05]
[1757493737763,1.4390851,112770.0,112760.0,4.62e-05]
[1757493737989,1.4340851,112770.0,112760.0,4.62e-05]
[1757493738552,1.53000109,112770.0,112760.0,4.62e-05]
[1757493738765,1.50771708,112770.0,112760.0,4.62e-05]
[1757493740040,1.36019708,112770.0,112760.0,4.62e-05]
[1757493740245,1.50771708,112770.0,112760.0,4.62e-05]
[1757493740599,1.36019708,112770.0,112760.0,4.62e-05]
[1757493740813,1.50771708,112770.0,112760.0,4.62e-05]
[1757493741010,1.26828109,112770.0,112760.0,4.62e-05]
[1757493741217,1.41780109,112770.0,112760.0,4.62e-05]
[1757493742312,1.41580109,112770.0,112760.0,4.62e-05]
[1757493743075,1.4380851,112770.0,112760.0,4.62e-05]
[1757493743283,1.29257611,112770.0,112760.0,4.62e-05]
[1757493743492,1.5320121,112770.0,112760.0,4.62e-05]
[1757493746925,2.04258852,112770.0,112760.0,4.62e-05]
[1757493747384,1.5320121,112770.0,112760.0,4.62e-05]
[1757493748322,1.36220809,112770.0,112760.0,4.62e-05]
[1757493748536,1.50972809,112770.0,112760.0,4.62e-05]
[1757493748925,1.50972212,112770.0,112760.0,4.62e-05]
[1757493749905,1.36220212,112770.0,112760.0,4.62e-05]
[1757493750092,1.50972212,112770.0,112760.0,4.62e-05]
[1757493751036,1.53200613,112770.0,112760.0,4.62e-05]
[1757493751544,1.38448613,112770.0,112760.0,4.62e-05]
[1757493751751,1.53204613,112770.0,112760.0,4.62e-05]
[1757493755779,1.50976212,112770.0,112760.0,4.62e-05]
[1757493756923,1.36220212,112770.0,112760.0,4.62e-05]
[1757493757127,1.50976212,112770.0,112760.0,4.62e-05]
[1757493760053,1.53204613,112770.0,112760.0,4.62e-05]
[1757493760256,1.38448613,112770.0,112760.0,4.62e-05]
[1757493760452,1.53204613,112770.0,112760.0,4.62e-05]
[1757493760672,1.38448613,112770.0,112760.0,4.62e-05]
[1757493760879,0.3116639,112770.0,112760.0,0.0051062]
[1757493761123,0.21974791,112770.0,112760.0,0.0287462]
[1757493761431,0.38994005,112770.0,112760.0,0.0287462]
[1757493761637,0.72994005,112770.0,112760.0,0.0287462]
[1757493761986,0.72794005,112770.0,112760.0,0.0287462]
[1757493762190,0.72994005,112770.0,112760.0,0.0287462]
[1757493762587,1.04765219,112770.0,112760.0,0.0021562]
[1757493763323,1.04365219,112770.0,112760.0,0.0021562]
[1757493763506,1.04565219,112770.0,112760.0,0.0051762]
[1757493764110,0.89813219,112770.0,112760.0,0.0051762]
[1757493764311,1.04365219,112770.0,112760.0,0.0051762]
[1757493764520,1.04565219,112770.0,112760.0,0.0051762]
[1757493764731,0.87546005,112770.0,112760.0,0.0051762]
[1757493764906,0.72794005,112770.0,112760.0,0.0288162]
[1757493765293,0.72794005,112770.0,112760.0,0.0051762]
[1757493772217,1.28391204,112770.0,112740.0,0.04772025]
[1757493772435,0.52626928,112740.0,112710.0,0.0667245]
[1757493772649,0.51781508,112720.0,112710.0,0.00315865]
[1757493772875,0.51781508,112720.0,112710.0,0.07377077]
[1757493773117,0.51781508,112720.0,112710.0,0.07593077]
[1757493773414,0.54447668,112720.0,112710.0,0.07593077]
[1757493773647,0.55395149,112720.0,112710.0,0.15323865]
[1757493774629,0.55395149,112720.0,112710.0,0.00329865]
[1757493774846,0.55592149,112720.0,112710.0,0.00329865]
[1757493775582,0.89592149,112720.0,112710.0,0.00329865]
[1757493775769,0.89395149,112720.0,112710.0,0.00329865]
[1757493779640,0.89893149,112720.0,112710.0,0.15117865]
[1757493779890,0.89893149,112720.0,112710.0,0.00329865]
[1757493780276,0.89893149,112720.0,112710.0,0.15117865]
[1757493781575,0.87226989,112720.0,112710.0,0.15117865]
[1757493781836,0.87226989,112720.0,112710.0,0.00329865]
[1757493782003,0.86728989,112720.0,112710.0,0.00329865]
[1757493782355,0.86728989,112720.0,112710.0,0.15113865]
[1757493782549,0.75395925,112720.0,112710.0,0.00329865]
[1757493782761,0.75395925,112720.0,112710.0,0.15113865]
[1757493784680,0.75395925,112720.0,112710.0,0.00329865]
[1757493784890,0.75395925,112720.0,112710.0,0.15113865]
[1757493785700,0.75395925,112720.0,112710.0,0.15013865]
[1757493788133,0.75395925,112720.0,112710.0,0.00229865]
[1757493788364,0.75893925,112720.0,112710.0,0.15009865]
[1757493789930,0.75395925,112720.0,112710.0,0.15009865]
[1757493790369,0.17744654,112710.0,112700.0,0.50000001]
[1757493790585,0.74450018,112710.0,112700.0,0.64780001]
[1757493790796,0.74450018,112710.0,112700.0,0.64996001]
[1757493792190,0.74746018,112710.0,112700.0,0.64996001]
[1757493792593,0.74746018,112710.0,112700.0,0.65196001]
[1757493794638,0.74941018,112710.0,112700.0,0.65196001]
[1757493796241,0.74941018,112710.0,112700.0,0.64980001]
[1757493796434,0.74941018,112710.0,112700.0,0.65177001]
[1757493796876,0.77779358,112710.0,112700.0,0.65177001]
[1757493799650,0.55073994,112710.0,112700.0,0.65177001]
[1757493799835,0.77779358,112710.0,112700.0,0.65177001]
[1757493801200,0.55073994,112710.0,112700.0,0.65177001]
[1757493801403,0.77779358,112710.0,112700.0,0.65177001]
[1757493801640,0.96162556,112710.0,112700.0,0.08726589]
[1757493801852,1.06014747,112710.0,112700.0,1e-08]
[1757493802464,0.91234747,112710.0,112700.0,1e-08]
[1757493802664,0.51746228,112700.0,112690.0,0.1482]
[1757493802818,0.83643191,112700.0,112690.0,0.14866205]
[1757493803034,0.90192265,112700.0,112690.0,0.15063205]
[1757493803459,0.90192265,112700.0,112690.0,0.15366205]
[1757493805460,0.90292265,112700.0,112690.0,0.15366205]
[1757493805651,0.81100666,112700.0,112690.0,0.15366205]
[1757493807052,0.81100666,112700.0,112690.0,0.15063205]
[1757493808967,0.81100666,112700.0,112690.0,0.15366205]
[1757493809188,0.81100666,112700.0,112690.0,0.15063205]
[1757493809399,0.82762668,112700.0,112690.0,0.15063205]
[1757493810210,0.60057304,112700.0,112690.0,0.15063205]
[1757493810424,0.82762668,112700.0,112690.0,0.15063205]
[1757493816364,0.82762668,112700.0,112690.0,0.15366205]
[1757493816609,0.1950823,112700.0,112690.0,0.17718205]
[1757493816834,0.17846228,112700.0,112690.0,0.17718205]
[1757493818176,0.17746228,112700.0,112690.0,0.17718205]
[1757493818599,0.17746228,112700.0,112690.0,0.17940052]
[1757493819035,0.17746228,112700.0,112690.0,0.18040052]
[1757493823369,0.17746228,112700.0,112690.0,0.17818205]
[1757493823563,0.17746228,112700.0,112690.0,0.03038205]
[1757493823776,0.17746228,112700.0,112690.0,0.17806205]
[1757493826240,0.17746228,112700.0,112690.0,0.24626205]
[1757493829612,0.17746228,112700.0,112690.0,0.24622205]
[1757493830611,0.17746228,112700.0,112690.0,0.22270205]
[1757493830829,0.17746228,112700.0,112690.0,0.07506205]
[1757493831029,0.17746228,112700.0,112690.0,0.22270205]
[1757493831690,0.17746228,112700.0,112690.0,0.07506205]
[1757493831849,0.17746228,112700.0,112690.0,0.22266205]
[1757493832566,0.20584568,112700.0,112690.0,0.22266205]
[1757493832777,0.3193725,112700.0,112690.0,0.22266205]
[1757493837348,0.3193725,112700.0,112690.0,0.07506205]
[1757493837544,0.3193725,112700.0,112690.0,0.22266205]
[1757493840295,0.20584568,112700.0,112690.0,0.22266205]
[1757493840438,0.3193725,112700.0,112690.0,0.22266205]
[1757493841903,0.34603582,112700.0,112690.0,0.22266205]
[1757493843484,0.232509,112700.0,112690.0,0.22266205]
[1757493844445,0.37441377,112700.0,112690.0,0.22266205]
[1757493844651,0.37441377,112700.0,112690.0,0.07506205]
[1757493844834,0.37441377,112700.0,112690.0,0.22266205]
[1757493845033,0.37441377,112700.0,112690.0,0.07506205]
[1757493845205,0.37441377,112700.0,112690.0,0.22266205]
[1757493845939,0.37441377,112700.0,112690.0,0.07506205]
[1757493846096,0.37441377,112700.0,112690.0,0.22266205]
[1757493847378,0.2041256,112700.0,112690.0,0.39295022]
[1757493847535,0.37441377,112700.0,112690.0,0.22266205]
[1757493849636,0.2041256,112700.0,112690.0,0.41941022]
[1757493849830,0.02666332,112700.0,112690.0,0.68880424]
[1757493850047,0.02666332,112700.0,112690.0,0.92279691]
[1757493850455,0.17744654,112710.0,112700.0,0.17746228]
[1757493850658,0.17744654,112710.0,112700.0,0.44385471]
[1757493850830,0.17744654,112710.0,112700.0,0.47112644]
[1757493853500,0.17744654,112710.0,112700.0,0.47212644]
[1757493854124,0.17744654,112710.0,112700.0,0.61972644]
[1757493855558,0.22243674,112720.0,112700.0,0.79001461]
[1757493855767,0.21296193,112720.0,112710.0,0.17553625]
[1757493855978,0.21296193,112720.0,112710.0,0.29546224]
[1757493856166,0.21296193,112720.0,112710.0,0.27055599]
[1757493856372,0.21296193,112720.0,112710.0,0.44084416]
[1757493857061,0.21296193,112720.0,112710.0,0.26739416]
[1757493857294,0.21296193,112720.0,112710.0,0.41499416]
[1757493857506,0.22209207,112720.0,112710.0,0.41499416]
[1757493857960,0.39238024,112720.0,112710.0,0.09407599]
[1757493858197,0.39238024,112720.0,112710.0,0.24167599]
[1757493858408,0.39238024,112720.0,112710.0,0.09407599]
[1757493858631,0.39238024,112720.0,112710.0,0.24167599]
[1757493858945,0.39238024,112720.0,112710.0,0.09407599]
[1757493859150,0.3832501,112720.0,112710.0,0.24470599]
[1757493859421,0.21296193,112720.0,112710.0,0.41499416]
[1757493859636,0.21296193,112720.0,112710.0,0.41599416]
[1757493860078,0.21296193,112720.0,112710.0,0.24570599]
[1757493860282,0.21296193,112720.0,112710.0,0.41599416]
[1757493860714,0.21296193,112720.0,112710.0,0.24570599]
[1757493860930,0.21296193,112720.0,112710.0,0.41599416]
[1757493862666,0.21296193,112720.0,112710.0,0.24570599]
[1757493862881,0.21296193,112720.0,112710.0,0.41599416]
[1757493863080,0.21296193,112720.0,112710.0,0.24570599]
[1757493863253,0.21296193,112720.0,112710.0,0.41599416]
[1757493864044,0.55864827,112720.0,112710.0,0.001]
[1757493864213,1.12612472,112720.0,112710.0,0.001]
[1757493864451,0.95583655,112720.0,112710.0,0.001]
[1757493865167,0.61526021,112720.0,112710.0,0.001]
[1757493865364,0.17744654,112710.0,112700.0,0.14764]
[1757493865570,0.37906299,112710.0,112700.0,0.14764]
[1757493865949,0.38117299,112710.0,112700.0,0.14764]
[1757493866343,0.40783595,112710.0,112700.0,0.14764]
[1757493866750,0.40783595,112710.0,112700.0,0.14864]
[1757493867310,0.23754778,112710.0,112700.0,0.14864]
[1757493867453,0.40783595,112710.0,112700.0,0.14864]
[1757493867914,0.43669595,112710.0,112700.0,0.14864]
[1757493868354,0.43669595,112710.0,112700.0,0.1488]
[1757493868580,0.43669595,112710.0,112700.0,0.001]
[1757493868789,0.43669595,112710.0,112700.0,0.14876]
[1757493869628,0.26640778,112710.0,112700.0,0.14876]
[1757493869846,0.43669595,112710.0,112700.0,0.14876]
[1757493870059,0.26640778,112710.0,112700.0,0.14876]
[1757493870263,0.40783595,112710.0,112700.0,0.14876]
[1757493871999,0.43669595,112710.0,112700.0,0.14876]
[1757493872256,0.43669595,112710.0,112700.0,0.149]
[1757493873245,0.43669595,112710.0,112700.0,0.148]
[1757493875103,0.40783595,112710.0,112700.0,0.148]
[1757493877382,0.40783595,112710.0,112700.0,0.15016]
[1757493878156,0.40272595,112710.0,112700.0,0.15016]
[1757493878377,0.37439767,112710.0,112700.0,0.15016]
[1757493880588,0.40272595,112710.0,112700.0,0.15016]
[1757493881846,0.23243778,112710.0,112700.0,0.15540827]
[1757493882069,0.37439767,112710.0,112700.0,0.15540827]
[1757493882528,0.37439767,112710.0,112700.0,0.15319]
[1757493882721,0.37439767,112710.0,112700.0,0.15016]
[1757493883566,0.40272595,112710.0,112700.0,0.15116]
[1757493883711,0.40782595,112710.0,112700.0,0.15116]
[1757493883910,0.40782595,112710.0,112700.0,0.14888]
[1757493884941,0.40782595,112710.0,112700.0,0.001]
[1757493885160,0.40782595,112710.0,112700.0,0.14888]
[1757493887048,0.23753778,112710.0,112700.0,0.14888]
[1757493887351,0.40782595,112710.0,112700.0,0.14888]
[1757493887982,0.23753778,112710.0,112700.0,0.14888]
[1757493888198,0.40782595,112710.0,112700.0,0.14888]
[1757493890519,0.40782595,112710.0,112700.0,0.15102]
[1757493890729,0.40272595,112710.0,112700.0,0.15102]
[1757493892793,0.94585412,112710.0,112700.0,0.1488]
[1757493894113,0.94585412,112710.0,112700.0,0.001]
[1757493894327,0.94585412,112710.0,112700.0,0.14884]
[1757493894328,1.20805828,112710.0,112700.0,0.14884]
[1757493894538,1.03777011,112710.0,112700.0,0.001]
[1757493894785,1.03777011,112710.0,112690.0,0.14870205]
[1757493894786,0.51746228,112700.0,112690.0,0.14870205]
[1757493894962,0.8863669,112700.0,112690.0,0.14870205]
[1757493895168,0.9192069,112700.0,112690.0,0.14870205]
[1757493896002,0.94587412,112700.0,112690.0,0.14870205]
[1757493897042,1.01369954,112700.0,112690.0,0.14870205]
[1757493897804,1.01369954,112700.0,112690.0,0.15084205]
[1757493897805,0.5492295,112700.0,112690.0,0.15084205]
[1757493898020,0.88470584,112700.0,112690.0,0.15084205]
[1757493898236,0.88980584,112700.0,112690.0,0.15084205]
[1757493899069,0.88980584,112700.0,112690.0,0.14870205]
[1757493899491,1.11616229,112700.0,112690.0,0.00086205]
[1757493899704,0.94587412,112700.0,112690.0,0.14874205]
[1757493900782,1.20807828,112700.0,112690.0,0.00086205]
[1757493900978,1.20807828,112700.0,112690.0,0.14874205]
[1757493901192,0.76317012,112700.0,112690.0,0.14874205]
[1757493901397,1.10374646,112700.0,112690.0,0.14874205]
[1757493902812,1.10374646,112700.0,112690.0,0.00086205]
[1757493904449,0.99033652,112700.0,112690.0,0.00086205]
[1757493906686,0.96200824,112700.0,112690.0,0.00086205]
[1757493907371,0.87009225,112700.0,112690.0,0.00086205]
[1757493907577,0.84235225,112700.0,112690.0,0.00300205]
[1757493907813,0.61008585,112700.0,112690.0,0.00300205]
[1757493908026,0.72366905,112700.0,112690.0,0.00300205]
[1757493908442,0.72667905,112700.0,112690.0,0.00300205]
[1757493908676,0.72876905,112700.0,112690.0,0.00300205]
[1757493908891,0.72366905,112700.0,112690.0,0.00300205]
[1757493909988,0.87068053,112700.0,112690.0,0.00086205]
[1757493910648,0.87068053,112700.0,112690.0,0.00300205]
[1757493910842,0.87068053,112700.0,112690.0,0.00086205]
[1757493911346,0.75709733,112700.0,112690.0,0.00086205]
[1757493911792,0.75709733,112700.0,112690.0,0.00292205]
[1757493912021,0.69114098,112700.0,112690.0,0.00292205]
[1757493912238,0.68604098,112700.0,112690.0,0.00292205]
[1757493912528,0.68604098,112700.0,112690.0,0.15072205]
[1757493912746,0.69113098,112700.0,112690.0,0.15072205]
[1757493913103,0.80471418,112700.0,112690.0,0.00086205]
[1757493913420,0.80471418,112700.0,112690.0,0.14866205]
[1757493914887,0.80471418,112700.0,112690.0,0.14862205]
[1757493915107,0.80471418,112700.0,112690.0,0.00086205]
[1757493915573,0.80471418,112700.0,112690.0,0.14862205]
[1757493915790,0.80471418,112700.0,112690.0,0.00086205]
[1757493916190,0.80471418,112700.0,112690.0,0.14862205]
[1757493916400,0.57754778,112700.0,112690.0,0.14862205]
[1757493916605,0.57754778,112700.0,112690.0,0.15068205]
[1757493916812,0.80471418,112700.0,112690.0,0.15068205]
[1757493917684,0.68604098,112700.0,112690.0,0.15068205]
[1757493918528,0.6577127,112700.0,112690.0,0.15068205]
[1757493920147,0.6577127,112700.0,112690.0,0.15371205]
[1757493920417,0.6577127,112700.0,112690.0,0.15068205]
[1757493921798,0.68931527,112700.0,112690.0,0.14862205]
[1757493922535,0.80289847,112700.0,112690.0,0.14862205]
[1757493927782,0.80289847,112700.0,112690.0,0.14854205]
[1757493928016,0.83053847,112700.0,112690.0,0.14854205]
[1757493931083,0.83053847,112700.0,112690.0,0.00086205]
[1757493931215,0.83053847,112700.0,112690.0,0.14854205]
[1757493941964,0.80289847,112700.0,112690.0,0.15050205]
[1757493942196,0.68931527,112700.0,112690.0,0.15050205]
[1757493943417,0.68422527,112700.0,112690.0,0.15050205]
[1757493943617,0.68917527,112700.0,112690.0,0.15050205]
[1757493945176,0.80275847,112700.0,112690.0,0.15050205]
[1757493950083,0.80275847,112700.0,112690.0,0.15054605]
[1757493952302,0.5441295,112700.0,112690.0,0.15357605]
[1757493952544,0.5441295,112700.0,112690.0,0.24549204]
[1757493952545,0.2041295,112700.0,112690.0,0.24549204]
[1757493952756,0.17746228,112700.0,112690.0,0.09781204]
[1757493952970,0.17746228,112700.0,112690.0,0.24577204]
[1757493953394,0.29104548,112700.0,112690.0,0.24274204]
[1757493953848,0.29104548,112700.0,112690.0,0.24278204]
[1757493954054,0.29104548,112700.0,112690.0,0.24378204]
[1757493956094,0.29104548,112700.0,112690.0,0.09578204]
[1757493956302,0.29104548,112700.0,112690.0,0.24378204]
[1757493957712,0.29104548,112700.0,112690.0,0.31198204]
[1757493960886,0.17746228,112700.0,112690.0,0.31198204]
[1757493961068,0.29104548,112700.0,112690.0,0.31198204]
[1757493962536,0.31770839,112700.0,112690.0,0.31198204]
[1757493964697,0.20412519,112700.0,112690.0,0.31501204]
[1757493965842,0.31770839,112700.0,112690.0,0.31198204]
[1757493966521,0.37442728,112700.0,112690.0,0.31198204]
[1757493967223,0.20412519,112700.0,112690.0,0.31198204]
[1757493967361,0.37442728,112700.0,112690.0,0.31198204]
[1757493969811,0.57071244,112700.0,112690.0,0.31202204]
[1757493970970,0.40041035,112700.0,112690.0,0.31202204]
[1757493971467,0.57071244,112700.0,112690.0,0.31202204]
[1757493972750,0.40041035,112700.0,112690.0,0.31202204]
[1757493973444,0.37442728,112700.0,112690.0,0.31505204]
[1757493975612,0.20412519,112700.0,112690.0,0.48535413]
[1757493975828,0.02666291,112700.0,112690.0,0.33703204]
[1757493976044,0.02666291,112700.0,112690.0,0.68481216]
[1757493976253,0.17744654,112710.0,112690.0,0.74851666]